Cogmind - Beta 16 @@@ ROGUE MODE // 2025.12.03 @ 18:52:52 Player: lepire Result: Self-destructed Performance ------------- Evolutions (0) 0 Regions Visited (3) 600 Robots Destroyed (22) 110 Value Destroyed (484) 484 Prototype IDs (0) 0 Alien Tech Used (0) 0 Bonus (300) 300 TOTAL SCORE: 1494 Bonus ------- Registered with UFD 300 Cogmind --------- Core Integrity 103/250 Matter 282/300 Energy 170/170 System Corruption 1% Temperature Cool (0) Movement Rolling (130) Ox2 Location -9/Scraptown Parts ------- > --- POWER (1) -------- Makeshift Power Source > --- PROPULSION (2) --- Compact Wheel Airjet > --- UTILITY (2) ------ Large Storage Unit Hardened Medium Armor Plating > --- WEAPON (2) ------- Multitool > --- INVENTORY (15) --- Light Treads Small Storage Unit Improved Targeting Computer Transmission Jammer Power Shielding Utility Shielding Improved Utility Shielding Light Armor Plating Thermal Shield Hacking Suite Makeshift System Shield High-powered Shotgun Mini Grenade Launcher Mini Grenade Launcher Peak State ------------ > --- POWER ------------ Makeshift Power Source > --- PROPULSION ------- Compact Wheel Airjet > --- UTILITY ---------- Large Storage Unit Hardened Medium Armor Plating > --- WEAPON ----------- Multitool > --- INVENTORY -------- Light Treads Small Storage Unit Terrain Scan Processor Improved Targeting Computer Transmission Jammer Power Shielding Utility Shielding Improved Utility Shielding Light Armor Plating Thermal Shield Hacking Suite Makeshift System Shield Mini Grenade Launcher Mini Grenade Launcher [Rating: 17] Favorites ----------- Power Makeshift Power Source Engine Makeshift Power Source Propulsion Compact Wheel Treads Light Treads Leg Aluminum Leg Wheel Compact Wheel Hover Unit Airjet Utility Large Storage Unit Device Structural Scanner Storage Large Storage Unit Protection Hardened Medium Armor Plating Weapon Multitool Energy Gun Medium Laser Energy Cannon Subdweller Beam Cannon Launcher Mini Grenade Launcher Special Weapon Multitool Build | -11 -10 -10 -9 ------- Run | Yrd Mat Sub Scr Slots Evolved . | . . . . Power . | . . . . Propulsion . | . . . . Utility . | . . . . Weapon . | . . . . Parts Attached 20 | 2 11 5 2 Power 3 | . 1 2 . Engine 3 | . 1 2 . Core . | . . . . Reactor . | . . . . Propulsion 6 | 2 3 . 1 Treads 3 | 1 2 . . Leg . | . . . . Wheel 2 | 1 1 . . Hover 1 | . . . 1 Flight . | . . . . Utility 5 | . 4 . 1 Device 2 | . 2 . . Storage 1 | . 1 . . Processor . | . . . . Hackware . | . . . . Protection 2 | . 1 . 1 Artifact . | . . . . Weapon 6 | . 3 3 . Energy Gun 3 | . 3 . . Energy Cannon 1 | . . 1 . Ballistic Gun . | . . . . Ballistic Cannon . | . . . . Launcher 1 | . . 1 . Special Weapon 1 | . . 1 . Impact Weapon . | . . . . Slashing Weapon . | . . . . Piercing Weapon . | . . . . Special Melee Weapon . | . . . . Unidentified Prototypes . | . . . . Parts Lost 3 | . 2 1 . Power 1 | . . 1 . Propulsion . | . . . . Utility 1 | . 1 . . Weapon 1 | . 1 . . Highest Loss Streak 2 | . 2 1 . To Critical Strikes . | . . . . Average Backups 12 | 6 9 14 11 Power . | 1 . . . Propulsion 1 | 4 1 1 . Utility 7 | . 5 8 7 Weapon 2 | 1 1 3 2 Tool/Special . | . . . . Unused Backups 27 | . 4 4 19 Power 2 | . 1 . 1 Propulsion 1 | . . . 1 Utility 15 | . 1 2 12 Weapon 8 | . 2 1 5 Tool/Special 1 | . . 1 . Average Slot Usage (%) 90 | . 96 96 85 Engine 13 | . 14 12 14 Treads 13 | . 14 14 13 Wheel 14 | . 14 14 14 Device 2 | . 10 . . Storage 14 | . 14 14 14 Protection 10 | . . 14 14 Energy Gun 12 | . 27 23 . Special Weapon 7 | . . 2 14 Peak Build Rating 17 | 6 9 13 17 Average Rating 11 | 6 7 11 14 On Entrance 8 | 6 6 8 13 Avg Prop Armor Cover (%) 3 | . 7 2 2 Naked Turns . | . . . . Heaviest Build 37 | 14 32 37 34 Greatest Support 20 | 16 20 20 20 Greatest Overweight (x) 4 | . 1 1 4 Average Overweight (x) 1 | . . 1 1 Largest Inventory Capacity 15 | 8 15 15 15 Average Capacity 14 | 8 14 15 15 Most Carried 15 | 6 15 15 15 Average Carried 12 | 5 9 14 11 Final Capacity 15 | 8 15 15 15 Final Carried 15 | 4 13 15 14 Class Distribution -------------------- 100% | Mutant Dominant Class ---------------- Mutant | -10/Materials Mutant | -10/Subcaves Mutant | -9/Scraptown Resources | -11 -10 -10 -9 ----------- Run | Yrd Mat Sub Scr Matter Collected 446 | 211 89 130 16 Remotely . | . . . . Salvage Created 724 | . 544 180 . Parts 40 | . 34 6 . Haulers Intercepted 2 | . 2 . . Recyclers Shooed . | . . . . Parts Field Recycled . | . . . . Retrieved Matter . | . . . . Parts Self-Destructed 2 | . . 2 . Prevented . | . . . . Parts Restored . | . . . . Kills | -11 -10 -10 -9 ------- Run | Yrd Mat Sub Scr Combat Hostiles Destroyed 16 | . 13 3 . Guns 15 | . 13 2 . Classes Destroyed 8 | . 7 1 . Worker 1 | . 1 . . Builder 1 | . 1 . . Hauler 2 | . 2 . . Operator 1 | . 1 . . Watcher 1 | . 1 . . Swarmer 5 | . 5 . . Grunt 8 | . 8 . . Subdweller 3 | . . 3 . Best Kill Streak 3 | . 3 1 . Combat Bots Only 3 | . 3 1 . Max Kills in Single Turn 1 | . 1 1 . Gunslinging . | . . . . Exploded . | . . . . Melee . | . . . . Uniques/NPCs Destroyed . | . . . . Combat | -11 -10 -10 -9 -------- Run | Yrd Mat Sub Scr Hostile Shots Fired 79 | . 56 23 . Missed 26 | . 19 7 . Hits 53 | . 37 16 . Projectile 53 | . 37 16 . Damage Taken 772 | . 438 334 . Core 147 | . 104 43 . Absorbed by Shields . | . . . . Regen/Repaired (Parts) 152 | . . . 152 Core Remaining (%) 100 | 100 . . . Volleys Fired 75 | . 56 19 . Largest 2 | . 2 2 . Hottest 120 | . 100 120 . Shots Fired 148 | . 111 37 . Gun 145 | . 111 34 . Cannon 3 | . . 3 . Launcher . | . . . . Special . | . . . . Kinetic . | . . . . Thermal 112 | . 109 3 . Explosive . | . . . . Electromagnetic 36 | . 2 34 . Robot Hit Streak 21 | . 9 21 . Robot Miss Streak 4 | . 4 1 . Penetration Max . | . . . . Secondary Targets . | . . . . Shots Hit Robots 90 | . 60 30 . Core Hits 37 | . 30 7 . Critical Kills . | . . . . Critical Parts Destroyed . | . . . . Critical Strikes 6 | . 6 . . Burn 6 | . 6 . . Melee Attacks . | . . . . Impact . | . . . . Slashing . | . . . . Piercing . | . . . . Sneak Attacks . | . . . . Combat Hostiles . | . . . . Follow-up Attacks . | . . . . Damage Inflicted 1083 | . 764 319 . Guns 1083 | . 764 319 . Cannons . | . . . . Explosions . | . . . . Melee . | . . . . Ramming . | . . . . Kinetic . | . . . . Thermal 732 | . 732 . . Explosive . | . . . . Electromagnetic 351 | . 32 319 . Impact . | . . . . Slashing . | . . . . Piercing . | . . . . Highest Corruption 1 | . 1 1 1 Average Corruption 1 | . 1 1 1 Corruption Purged . | . . . . Corruption Blocked . | . . . . Effects 19 | . . 7 12 Message Errors 3 | . . . 3 Matter Fused 3 | . . 1 2 Heat Flow Errors 5 | . . 4 1 Energy Discharges 3 | . . 1 2 Data Loss (minor) 3 | . . . 3 Data Loss (major) 1 | . . . 1 Misfires 1 | . . 1 . Overload Shots . | . . . . Overflow Damage . | . . . . Projectiles . | . . . . Explosions . | . . . . Melee . | . . . . Knockbacks . | . . . . Impact . | . . . . Kinetic . | . . . . Secondary . | . . . . Self-Inflicted Damage . | . . . . Shots . | . . . . Rammed . | . . . . Targets Rammed . | . . . . Kicked . | . . . . Crushed . | . . . . Highest Temperature 258 | . 186 246 258 Average Temperature 64 | . 55 66 132 Received Heat Transfer 192 | . 96 96 . Siege Activations . | . . . . Martial Activations . | . . . . Shielding Activations . | . . . . Robots Disrupted . | . . . . Combat Hostiles . | . . . . Robots Corrupted 1 | . . 1 . Combat Hostiles 1 | . . 1 . Parts Fried 4 | . . 4 . Impact Corruptions . | . . . . Robots Melted . | . . . . Combat Hostiles . | . . . . Parts Melted 5 | . 5 . . Heat Transferred 2603 | . 2603 . . Parts Sabotaged . | . . . . Parts Stolen . | . . . . Parts Stripped . | . . . . Power Chain Reactions . | . . . . Alert | -11 -10 -10 -9 ------- Run | Yrd Mat Sub Scr Maximum Alert Level . | . . . . Low Security (%) 100 | 100 100 . . Level 1 . | . . . . Level 2 . | . . . . Level 3 . | . . . . Level 4 . | . . . . Level 5 . | . . . . High Security . | . . . . Max Security . | . . . . Peak Influence 165 | . 165 . . Initial . | . . . . Average 68 | . 68 . . Influence Increases 515 | . 515 . . Destroy 0b10 Robot/C 260 | . 260 . . Destroy 0b10 Robot/NC 30 | . 30 . . Destroy Leader 56 | . 56 . . Successful Hack 4 | . 4 . . Select Force Hacks 60 | . 60 . . Lose Combat Pursuer 105 | . 105 . . Influence Decreases 515 | . 433 82 . Entered New Map 40 | . . 40 . Time Decay 455 | . 413 42 . Lost Part 20 | . 20 . . Squads Dispatched 3 | . 3 . . Investigation 2 | . 2 . . Extermination . | . . . . Reinforcement 1 | . 1 . . Assault . | . . . . Garrison . | . . . . Intercept . | . . . . Searches Triggered . | . . . . Construction Impeded . | . . . . Haulers Reinforced . | . . . . Active Scanning Responses . | . . . . Cargo Convoy Interrupts . | . . . . Stealth | -11 -10 -10 -9 --------- Run | Yrd Mat Sub Scr Distress Signals 2 | . 2 . . Communications Jammed . | . . . . Distress Signals . | . . . . Times Spotted 31 | . 27 4 . Peak Tracking Total 4 | . 4 1 . Tactical Retreats 4 | . 4 . . Traps | -11 -10 -10 -9 ------- Run | Yrd Mat Sub Scr Traps Triggered 1 | . 1 . . Indirectly . | . . . . Trap Hack Attempts . | . . . . Triggered . | . . . . Disarmed . | . . . . Reprogrammed . | . . . . Reused . | . . . . Traps Extracted . | . . . . Installed . | . . . . Triggered . | . . . . Machines | -11 -10 -10 -9 ---------- Run | Yrd Mat Sub Scr Machines Disabled . | . . . . Max in Single Turn . | . . . . Machines Repaired . | . . . . Machines Dismantled . | . . . . Machines Sabotaged . | . . . . Overloaded Fab Kills . | . . . . Hacking | -11 -10 -10 -9 --------- Run | Yrd Mat Sub Scr Machines Accessed 6 | . 6 . . Terminals 4 | . 4 . . Fabricators . | . . . . Repair Stations . | . . . . Recycling Units 2 | . 2 . . Scanalyzers . | . . . . Garrison Access . | . . . . Total Hacks 17 | . 17 . . Successful 10 | . 10 . . Failed 7 | . 7 . . Catastrophic 1 | . 1 . . Database Lockouts . | . . . . Manual 13 | . 13 . . Terminals 12 | . 12 . . Fabricators . | . . . . Repair Stations . | . . . . Recycling Units 5 | . 5 . . Scanalyzers . | . . . . Garrison Access . | . . . . Terminal Hacks 2 | . 2 . . Locate Traps 1 | . 1 . . Zone Layout 1 | . 1 . . Fabricator Hacks . | . . . . Repair Station Hacks . | . . . . Recycling Unit Hacks 2 | . 2 . . Report Inventory 2 | . 2 . . Scanalyzer . | . . . . Garrison Access Hacks . | . . . . Unauthorized Hacks 6 | . 6 . . Terminals 4 | . 4 . . Botnet 3 | . 3 . . Operators 1 | . 1 . . Fabricators . | . . . . Repair Stations . | . . . . Recycling Units 2 | . 2 . . Tunnel 2 | . 2 . . Scanalyzers . | . . . . Garrison Access . | . . . . Data Cores Recovered . | . . . . Used . | . . . . Hacking Detections 4 | . 4 . . Full Trace Events . | . . . . Feedback Events . | . . . . Feedback Blocked . | . . . . Robot Schematics Acquired . | . . . . Robots Built . | . . . . Authchips . | . . . . Time . | . . . . Total Robot Build Rating . | . . . . Part Schematics Acquired . | . . . . Parts Built . | . . . . Authchips . | . . . . Time . | . . . . Total Part Build Rating . | . . . . Part Studies Acquired . | . . . . Parts Repaired . | . . . . Time . | . . . . Parts Recycled . | . . . . Recycled Matter . | . . . . Retrieved Matter . | . . . . Retrieved Components . | . . . . Parts Scanalyzed . | . . . . Part Schematics Acquired . | . . . . Parts Damaged . | . . . . Bothacking | -11 -10 -10 -9 ------------ Run | Yrd Mat Sub Scr Used RIF Installer . | . . . . Robots Hacked . | . . . . Non-combat . | . . . . Combat . | . . . . Robot Hacks Applied . | . . . . Relay Couplers Released . | . . . . Fabnet Peak Effective % . | . . . . Robots Rewired . | . . . . Allies Hacked . | . . . . Hacks Repelled . | . . . . Allies | -11 -10 -10 -9 -------- Run | Yrd Mat Sub Scr Total Allies . | . . . . Largest Group . | . . . . Highest-Rated Group . | . . . . Highest-Rated Ally . | . . . . Total Orders . | . . . . Ally Attacks . | . . . . Total Damage . | . . . . Kills . | . . . . Allies Corrupted . | . . . . Allies Melted . | . . . . Intel | -11 -10 -10 -9 ------- Run | Yrd Mat Sub Scr Active Infowar (turns) 500 | . 500 . . Structural 500 | . 500 . . Robot Analysis Total . | . . . . Derelict Logs Recovered 4 | . . . 4 Drone Launches . | . . . . Drone Recoveries . | . . . . Exploration | -11 -10 -10 -9 ------------- Run | Yrd Mat Sub Scr Turns Passed 4588 | 6 1205 1113 2264 Spaces Moved 1933 | 2 522 429 980 Core . | . . . . Treads 1593 | . 293 429 871 Legs . | . . . . Wheels 330 | 2 229 . 99 Hover 10 | . . . 10 Flight . | . . . . Fastest Speed 100 | 100 100 240 130 Average Speed 219 | 100 184 240 229 Slowest Speed 305 | 100 240 240 305 Overloaded Moves . | . . . . Propulsion Burnouts . | . . . . Robots Hopped . | . . . . Potential Cave-ins . | . . . . Cave-ins Triggered . | . . . . Exploration Rate (%) 39 | 1 73 22 62 Regions Visited 3 Branch Regions 2 Pre-discovered Areas 3 | . 2 . 1 Known Exits Taken . | . . . . Unknown Exits Taken 3 | 1 1 1 . Scrap Searched 6 | . . 2 4 Spaces Dug . | . . . . Terrain Destroyed . | . . . . Melee . | . . . . Projectile . | . . . . AOE . | . . . . Terrain Rammed . | . . . . Walls Destroyed . | . . . . Machines Disabled . | . . . . Actions | -11 -10 -10 -9 --------- Run | Yrd Mat Sub Scr Total 2129 | 5 648 478 998 Wait 44 | . 40 4 . Move 1930 | 1 521 428 980 Hop . | . . . . Pick Up 30 | . 13 10 7 Fast Attach 2 | . 2 . . Attach 4 | . 2 2 . Detach 1 | . 1 . . Swap 20 | 2 9 7 2 Drop 23 | 2 4 8 9 Fire 75 | . 56 19 . Melee . | . . . . Ram . | . . . . Kick . | . . . . Crush . | . . . . Escape Stasis . | . . . . Rewire . | . . . . Trap . | . . . . Miscellaneous . | . . . . Route ------- -11/Scrapyard -10/Materials (discovered 4 exits: [*Mat x2] / [*Min] / [*Sub]) -10/Subcaves (discovered 2 exits: [*Mat] / *Scr) -9/Scraptown (discovered 1 exit: [*Fac]) History --------- Turn | Location | Event 6 | -11/Scrapyard | Discovered new exit (range 1) 7 | -11/Scrapyard | Entered Materials 127 | -10/Materials | Discovered new exit (range 20) 248 | -10/Materials | Discovered new exit (range 15) 308 | -10/Materials | Build established: Mutant 960 | -10/Materials | Discovered new exit (range 7) 1190 | -10/Materials | Discovered new exit (range 10) 1212 | -10/Materials | Entered Subcaves 1213 | -10/Subcaves | Shifting Twisted Machinery released Sub. Beam Cannon 1213 | -10/Subcaves | Approached by a straggling Scientist 1219 | -10/Subcaves | Shifting Twisted Machinery released Sub. Beam Cannon 1926 | -10/Subcaves | Discovered new exit (range 12) 2114 | -10/Subcaves | Core integrity fell below 50% 2193 | -10/Subcaves | A swath of the cavern ceiling suddenly collapsed 2325 | -10/Subcaves | Entered Scraptown 2805 | -9/Scraptown | Scanned Subdweller tech in exchange for log data 2809 | -9/Scraptown | Learned Factory garrison access intel 2812 | -9/Scraptown | Learned location of Extension (-4) 2814 | -9/Scraptown | Learned location of 2 exits from Research 2817 | -9/Scraptown | Learned Factory emergency access door positions 3127 | -9/Scraptown | Discovered new exit (range 5) 3309 | -9/Scraptown | Heard Great Nut preacher, LISTEN AND RECITE! 3314 | -9/Scraptown | Visited Symbiants 3434 | -9/Scraptown | Visited Shadow of the Wyrm 3480 | -9/Scraptown | Visited Spacefarers 3729 | -9/Scraptown | Visited Assassins FH 4419 | -9/Scraptown | Visited CR-KLE's Repair Center 4440 | -9/Scraptown | CR-KLE repaired 5 parts 4477 | -9/Scraptown | Visited Junk Repository 4539 | -9/Scraptown | Visited UFD Registry 4539 | -9/Scraptown | Registered with UFD as "Protonrunner" 4573 | -9/Scraptown | Visited Derelict Rescue Squad 4589 | -9/Scraptown | Self-destructed Last Messages --------------- is! You think I wanted to be called Nanobearings? Welcome, Protonrunner! 04539_ ANNOUNCEMENT: Welcome to our newest member, Protonrunner! Open the gate! 04573_ LOCAL NARROWCAST: Derelict Rescue Squad. Who you gonna call? M3-QMG(h): Welcome to the UFD, Protonrunner! If you're planning on visiting any caves around the 0b10 area, I suggest you take this beacon. You're in luck, this is the last one we have to hand out this cycle. Just drop it and activate, we'll send help as soon as possible. If you end up not using it, bring it on back so we can hand it off to another brave explorer. Resources are limited, after all, and a single beacon will only work once, as we have to spread the help around. 04589_ Dropped Terrain Scan Processor. Map ----- +----------------------------------------------------+ | # #???????" ""#?????????????????????? | | # ###?#???" ""#?????????????????????? | | # ""#"#???" ""#?????????????????????? | | # """"#???" ""# ????????????????????? | | # ""###???#" "" ???????????????????? | | # ###?????#" "" ???????????????????? | | # #########" ""#?????????????????????? | | # ""#?????????????????????? | | # ""#?????????????????????? | | # ""#?????????????????????? | | # ""#?????????????????????? | | # ""###### ??????????????? | | """"""""""""????????????? | | """""""""""""""?????????? | | ????????? | | ????????? | | ????????? | | #""""#" ????????? | | #????#" ????????? | | #????#"""""" """"""""""" ""?????????? | | ### ### ####????####### ##########?????????????? | | # #????????# #????????????????????? | | # #????????# #????????????????????? | | "# #????????# z #????????????????????? | | "# #????????#"" !""#????????????????????? | | "# #????????#" @ "#????????????????????? | | """""## #????????#"" hh""#????????????????????? | | "## #????????#" "#????????????????????? | | ### #????????#"" ""#????????????????????? | | #?# #????????#" "#????????????????????? | | #####?# #????????#" && " "#????????????????????? | | ??????# #????????#""""""""#????????????????????? | | ####### #????????##########????????????????????? | | """"""" #??????????????????????????????????????? | | " """"" #??????????????????????????????????????? | | " "" #??????????????????????????????????????? | | #??????????????????????????????????????? | | "" "" " #??????????????????????????????????????? | | """"""" #??????????????????????????????????????? | | """"""" #??????????????????????????????????????? | | ####### #??????????????????????????????????????? | | ####### #??????????????????????????????????????? | | """"""# #??????????????????????????????????????? | | / "# #??????????????????????????????????????? | | ! ] "# #??????????????????????????????????????? | | "# #??????????????????????????????????????? | | """"""# #??????????????????????????????????????? | | #??????????????????????????????????????? | | #??????????????????????????????????????? | | "" """#####??????????????????????????????????????? | +----------------------------------------------------+ Best States ------------- Heat Dissipation 35 Energy Generation 15 Energy Capacity 250 Matter Stores 300 Matter Capacity 300 Sight Range 16 Terrain Scan Density 10 Armor Coverage 225 Evasion (%) 40 Recoil Reduction 1 Item Schematics ----------------- None Robot Schematics ------------------ None Fabricated ------------ Nothing Repaired ---------- Nothing Studied --------- None Alien Tech Used ----------------- None Achievements -------------- None Challenges ------------ None Game ------ Seed RiotInertialProcessor Manual? 0 Play Time 00:23:46 Cumulative 114.3 hours Start 2025.12.02 @ 20:31:28 End 2025.12.03 @ 18:52:52 Sessions 3 Manual Loads 0 Difficulty Rogue Special Mode None Game No. 122 Rogue 92 Adventurer 30 Explorer 0 Win Type - Total 1 Types 1/0/0/0/0/0/0/0/0/0 Lore% 57 Gallery% 46 Achievement% 35 Wizard Run 0 Options --------- Layout 2 ASCII 0 Keyboard 1 Movement Arrows Keybinds 0 Fullscreen 1 Font 24/Tamsyn Map View 50x44 Zoom Use 0% Tactical HUD 1 Map Filters NONE Filters NONE Steam 1 RUN: eac69aff-f5a9-4ff4-8b21-3d736997213b